bitfinex-derivatives/quotes_BTCF0:USTF0_20250517
["timestamp","ask_amount","ask_price","bid_price","bid_amount"]
[1747491876683,0.00844216,103020.0,103010.0,2.1535579]
[1747491876883,0.00844216,103020.0,103010.0,2.25178254]
[1747491877088,0.00844216,103020.0,103010.0,2.1535579]
[1747491877688,0.00744216,103020.0,103010.0,2.1535579]
[1747491877985,0.00644216,103020.0,103010.0,2.1535579]
[1747491878378,0.20051676,103020.0,103010.0,2.1535579]
[1747491878685,0.00644216,103020.0,103010.0,2.1535579]
[1747491878885,0.00644216,103020.0,103010.0,2.19904596]
[1747491882894,0.00644216,103020.0,103010.0,2.2972706]
[1747491883087,0.00644216,103020.0,103010.0,2.19904596]
[1747491883387,0.00644216,103020.0,103010.0,2.2972706]
[1747491883584,0.00644216,103020.0,103010.0,2.30952432]
[1747491884289,0.00644216,103020.0,103010.0,2.21129968]
[1747491887390,0.00644216,103020.0,103010.0,2.16581162]
[1747491889992,0.00644216,103020.0,103010.0,1.95313162]
[1747491890194,0.00644216,103020.0,103010.0,2.06742698]
[1747491890394,0.00644216,103020.0,103010.0,1.74037162]
[1747491890597,0.00644216,103020.0,103010.0,2.16537162]
[1747491891092,0.20051676,103020.0,103010.0,2.16537162]
[1747491891282,0.20051676,103020.0,103010.0,1.74037162]
[1747491891482,0.20051676,103020.0,103010.0,2.16537162]
[1747491892089,0.00644216,103020.0,103010.0,2.16537162]
[1747491895898,0.00644216,103020.0,103010.0,1.44377162]
[1747491896197,0.00644216,103020.0,103010.0,2.16537162]
[1747491896997,0.00644216,103020.0,103010.0,1.44377162]
[1747491897201,0.18644216,103020.0,103010.0,2.16537162]
[1747491898089,0.00644216,103020.0,103010.0,2.16537162]
[1747491898291,0.09204216,103020.0,103010.0,2.16537162]
[1747491899295,0.09204216,103020.0,103010.0,1.95285162]
[1747491899492,0.28611666,103020.0,103010.0,2.16529162]
[1747491900299,0.63481666,103020.0,103010.0,2.16529162]
[1747491900492,0.63481666,103020.0,103010.0,1.74037162]
[1747491900692,0.63481666,103020.0,103010.0,2.16529162]
[1747491905102,0.63481666,103020.0,103010.0,1.95285162]
[1747491905305,0.63481666,103020.0,103010.0,2.11251504]
[1747491905502,0.63481666,103020.0,103010.0,2.21073968]
[1747491908305,0.63481666,103020.0,103010.0,1.68763504]
[1747491908602,0.63481666,103020.0,103010.0,1.32195968]
[1747491908802,0.65481666,103020.0,103010.0,1.66239968]
[1747491909003,0.89481666,103020.0,103010.0,1.66239968]
[1747491910704,0.89481666,103020.0,103010.0,1.61691162]
[1747491911107,0.89481666,103020.0,103010.0,1.69721162]
[1747491912011,0.89481666,103020.0,103010.0,1.59898698]
[1747491912305,0.89481666,103020.0,103010.0,1.69721162]
[1747491913210,0.89481666,103020.0,103010.0,1.73423286]
[1747491913709,0.89481666,103020.0,103010.0,1.68756325]
[1747491915707,0.89481666,103020.0,103010.0,1.18242325]
[1747491915912,0.9930413,103020.0,103010.0,1.08419861]
[1747491916707,0.89481666,103020.0,103010.0,1.08419861]
[1747491917209,0.89481666,103020.0,103010.0,0.89010521]
[1747491917408,0.89481666,103020.0,103010.0,0.84082124]
[1747491917711,0.89481666,103020.0,103010.0,0.95271464]
[1747491917912,1.0901133,103020.0,103010.0,0.75862124]
[1747491920407,1.0901133,103020.0,103010.0,0.83842124]
[1747491920808,1.24173401,103020.0,103010.0,0.83842124]
[1747491923510,1.24173401,103020.0,103010.0,0.47762124]
[1747491923910,1.24473401,103020.0,103010.0,0.47762124]
[1747491924111,1.24773401,103020.0,103010.0,0.47762124]
[1747491928603,1.15066201,103020.0,103010.0,0.47762124]
[1747491929611,1.15066201,103020.0,103010.0,0.56342124]
[1747491929812,1.15066201,103020.0,103010.0,0.20262124]
[1747491930011,1.15066201,103020.0,103010.0,0.5264]
[1747491932019,1.05243737,103020.0,103010.0,0.5264]
[1747491932515,1.15066201,103020.0,103010.0,0.6077]
[1747491933018,1.05243737,103020.0,103010.0,0.6077]
[1747491933411,1.15066201,103020.0,103010.0,0.6077]
[1747491936013,0.96713737,103020.0,103010.0,0.90001804]
[1747491936219,0.79813737,103020.0,103010.0,0.90001804]
[1747491936416,0.79813737,103020.0,103010.0,0.8017934]
[1747491936616,0.79813737,103020.0,103010.0,0.90001804]
[1747491937216,0.61813737,103020.0,103010.0,0.90001804]
[1747491939624,0.46651666,103020.0,103010.0,0.90001804]
[1747491941223,0.46651666,103020.0,103010.0,0.93703928]
[1747491944221,0.46651666,103020.0,103010.0,1.29783928]
[1747491946527,0.20651666,103020.0,103010.0,1.29783928]
[1747491947435,0.20651666,103020.0,103010.0,1.63783928]
[1747491947735,0.20651676,103020.0,103010.0,1.85011928]
[1747491949030,0.01244216,103020.0,103010.0,1.85011928]
[1747491949225,0.01244216,103020.0,103010.0,1.89888558]
[1747491949429,0.01044216,103020.0,103010.0,1.89888558]
[1747491950026,0.00844216,103020.0,103010.0,1.89888558]
[1747491950433,0.20251676,103020.0,103010.0,1.89888558]
[1747491954043,0.00844216,103020.0,103010.0,1.89888558]
[1747491954229,0.00844216,103020.0,103010.0,1.94816955]
[1747491954430,0.00844216,103020.0,103010.0,2.04639419]
[1747491954940,0.20251666,103020.0,103010.0,2.04639419]
[1747491955442,0.00844216,103020.0,103010.0,2.04639419]
[1747491955739,0.00844216,103020.0,103010.0,1.94816955]
[1747491956141,0.20251666,103020.0,103010.0,1.94816955]
[1747491956440,0.00844216,103020.0,103010.0,1.94816955]
[1747491956842,0.00844216,103020.0,103010.0,2.04639419]
[1747491957045,0.00744216,103020.0,103010.0,2.04639419]
[1747491957440,0.00744216,103020.0,103010.0,1.94816955]
[1747491957640,0.00744216,103020.0,103010.0,2.04639419]
[1747491958243,0.00644216,103020.0,103010.0,2.04639419]
[1747491959548,0.00644216,103020.0,103010.0,1.84994491]
[1747491959738,0.00644216,103020.0,103010.0,1.94816955]
[1747491960138,0.18644216,103020.0,103010.0,1.94816955]
[1747491961249,0.00644216,103020.0,103010.0,1.94816955]
[1747491961860,0.00644216,103020.0,103010.0,2.04639419]
[1747491962352,0.00644216,103020.0,103010.0,1.94816955]
[1747491963353,0.00644216,103020.0,103010.0,2.04639419]
[1747491963754,0.00644216,103020.0,103010.0,1.84994491]
[1747491964046,0.18644216,103020.0,103010.0,1.94816955]
[1747491965255,0.00644216,103020.0,103010.0,1.94816955]
[1747491966254,0.18644216,103020.0,103010.0,1.94816955]
[1747491966752,0.18644216,103020.0,103010.0,1.91114831]
[1747491967358,0.27014216,103020.0,103010.0,1.91114831]
[1747491970758,0.46421676,103020.0,103010.0,1.91114831]
[1747491971359,0.46421676,103020.0,103010.0,1.81292367]
[1747491971557,0.46421676,103020.0,103010.0,1.91114831]
[1747491972950,0.46421676,103020.0,103010.0,2.12302831]
[1747491973554,0.46421676,103020.0,103010.0,1.69886831]
[1747491973956,0.46421676,103020.0,103010.0,1.78278831]
[1747491974157,0.63271676,103020.0,103010.0,1.17934367]
[1747491974465,0.63271676,103020.0,103010.0,1.27756831]
[1747491974858,0.65271676,103020.0,103010.0,1.48944831]
[1747491975059,0.65271676,103020.0,103010.0,1.19176831]
[1747491975561,0.65271676,103020.0,103010.0,1.40364831]
[1747491975963,0.65271676,103020.0,103010.0,1.48504831]
[1747491978962,0.65271676,103020.0,103010.0,1.5220757]
[1747491980268,0.65271676,103020.0,103010.0,0.8004757]
[1747491980471,0.65271676,103020.0,103010.0,1.5220757]
[1747491981170,0.65271676,103020.0,103010.0,1.6021757]
[1747491982871,0.43864216,103020.0,103010.0,1.9121757]
[1747491983363,0.18644216,103020.0,103010.0,1.9121757]
[1747491984270,0.38051656,103020.0,103010.0,1.9121757]
[1747491985780,0.18644216,103020.0,103010.0,1.9121757]
[1747491986078,0.38051676,103020.0,103010.0,1.9121757]
[1747491986269,0.38051676,103020.0,103010.0,1.86289173]
[1747491988176,0.38051676,103020.0,103010.0,1.55278709]
[1747491988378,0.38051676,103020.0,103010.0,1.76458709]
[1747491988675,0.38051676,103020.0,103010.0,1.86281173]
[1747491989478,0.38051676,103020.0,103010.0,1.87506831]
[1747491990972,0.38051676,103020.0,103010.0,1.77684367]
[1747491991170,0.38051676,103020.0,103010.0,1.87506831]
[1747491998776,0.38051676,103020.0,103010.0,2.08686831]
[1747491999783,0.38051676,103020.0,103010.0,2.08674831]
[1747491999984,0.46091676,103020.0,103010.0,2.08674831]
[1747492000175,0.46091676,103020.0,103010.0,1.66326831]
[1747492000576,0.46091676,103020.0,103010.0,2.08674831]
[1747492003780,0.46091676,103020.0,103010.0,1.66326831]
[1747492003982,0.46091676,103020.0,103010.0,2.08670831]
[1747492004289,0.46091676,103020.0,103010.0,1.80670831]
[1747492007990,0.46091676,103020.0,103010.0,1.08510831]
[1747492008290,0.46091676,103020.0,103010.0,2.10670831]
[1747492009087,0.46091676,103020.0,103010.0,1.80670831]
[1747492009985,0.46091676,103020.0,103010.0,1.08510831]
[1747492010191,0.46091676,103020.0,103010.0,1.80670831]
[1747492010892,0.46091676,103020.0,103010.0,1.08510831]
[1747492011091,0.46091676,103020.0,103010.0,1.80670831]
[1747492012001,0.46091676,103020.0,103010.0,1.81670831]
[1747492012489,0.46091676,103020.0,103010.0,1.50684367]
[1747492012791,0.46091676,103020.0,103010.0,1.81662831]
[1747492013694,0.46091676,103020.0,103010.0,1.80662831]
[1747492015994,0.46091676,103020.0,103010.0,2.12662831]
[1747492016189,0.46091676,103020.0,103010.0,1.77662831]
[1747492016389,0.46091676,103020.0,103010.0,1.80662831]
[1747492017094,0.46091676,103020.0,103010.0,1.77662831]
[1747492017300,0.46091676,103020.0,103010.0,1.80662831]
[1747492019802,0.46091676,103020.0,103010.0,1.08502831]
[1747492020000,0.46091676,103020.0,103010.0,1.80662831]
[1747492020397,0.46091676,103020.0,103010.0,1.77662831]
[1747492020703,0.46091676,103020.0,103010.0,1.81662831]
[1747492020897,0.46091676,103020.0,103010.0,1.77662831]
[1747492021099,0.46091676,103020.0,103010.0,1.80662831]
[1747492023401,0.46091676,103020.0,103010.0,1.08502831]
[1747492023601,0.46091676,103020.0,103010.0,1.80662831]
[1747492023903,0.46091676,103020.0,103010.0,2.10662831]
[1747492024102,0.46091676,103020.0,103010.0,1.77662831]
[1747492024293,0.46091676,103020.0,103010.0,1.81662831]
[1747492024492,0.46091676,103020.0,103010.0,1.40502831]
[1747492024693,0.46091676,103020.0,103010.0,2.11662831]
[1747492026507,0.46091676,103020.0,103010.0,1.80662831]
[1747492026904,0.46091676,103020.0,103010.0,2.09662831]
[1747492028110,0.38051676,103020.0,103010.0,2.09662831]
[1747492028703,0.38051676,103020.0,103010.0,1.67326831]
[1747492028909,0.18644216,103020.0,103010.0,2.09626831]
[1747492029093,0.18644216,103020.0,103010.0,1.67326831]
[1747492029294,0.18644216,103020.0,103010.0,2.19449295]
[1747492031207,0.18644216,103020.0,103010.0,2.30063176]
[1747492033302,0.00644216,103020.0,103010.0,2.30063176]
[1747492033501,0.00644216,103020.0,103010.0,2.37692081]
[1747492036203,0.18644216,103020.0,103010.0,2.37692081]
[1747492045224,0.62080956,103040.0,103030.0,0.1940558]
[1747492045517,0.46918885,103040.0,103030.0,1.75636044]
[1747492045722,0.46918885,103040.0,103030.0,2.00406044]
[1747492046110,0.64918885,103040.0,103030.0,2.00406044]
[1747492046304,0.65218885,103040.0,103030.0,2.05282674]
[1747492046515,0.65518885,103040.0,103030.0,2.05282674]
[1747492048815,0.65518885,103040.0,103030.0,2.00406044]
[1747492049916,0.65518885,103040.0,103030.0,2.10228508]
[1747492050118,0.65518885,103040.0,103030.0,2.00406044]
[1747492054523,0.66063101,103040.0,103030.0,2.00406044]
[1747492057826,0.66063101,103040.0,103030.0,2.04099917]
[1747492058719,0.65763101,103040.0,103030.0,2.04099917]
[1747492058919,0.65863101,103040.0,103030.0,2.04099917]
[1747492059930,0.65863101,103040.0,103030.0,2.08927044]
[1747492060131,0.65663101,103040.0,103030.0,2.09957632]
[1747492061140,0.65663101,103040.0,103030.0,2.00135168]
[1747492061322,0.65663101,103040.0,103030.0,2.09957632]
[1747492061723,0.65663101,103040.0,103030.0,2.11188923]
[1747492064725,0.44584216,103040.0,103030.0,2.11188923]
[1747492066739,0.44584216,103040.0,103030.0,2.10134335]
[1747492067349,0.44584216,103040.0,103030.0,2.00311871]
[1747492067647,0.44584216,103040.0,103030.0,2.10134335]
[1747492067846,0.18944216,103040.0,103030.0,2.19956799]
[1747492068044,0.18944216,103040.0,103030.0,2.10134335]
[1747492068947,0.18844216,103040.0,103030.0,2.10134335]
[1747492069149,0.19044216,103040.0,103030.0,2.10134335]
[1747492069342,0.18944216,103040.0,103030.0,2.11122648]
[1747492069846,0.18744216,103040.0,103030.0,2.11122648]
[1747492070739,0.18744216,103040.0,103030.0,2.15671454]
[1747492074646,0.00544216,103040.0,103030.0,2.25481918]
[1747492074846,0.86453171,103060.0,103050.0,0.1940189]
[1747492075046,1.06415196,103060.0,103050.0,1.43668304]
[1747492075255,1.24415196,103060.0,103050.0,1.5832584]
[1747492075642,1.24415196,103060.0,103050.0,1.68148304]
[1747492076448,1.24615196,103060.0,103050.0,1.68148304]
[1747492076648,1.24715196,103060.0,103050.0,1.68148304]
[1747492079354,1.04715196,103060.0,103050.0,1.68148304]
[1747492079655,1.04715196,103060.0,103050.0,1.59807972]
[1747492079953,1.04715196,103060.0,103050.0,1.69630436]
[1747492081550,1.04715196,103060.0,103050.0,0.81828082]
[1747492081746,1.24715196,103060.0,103050.0,1.43401962]
[1747492081948,1.09553125,103060.0,103050.0,1.01229962]
[1747492082150,1.09553125,103060.0,103050.0,1.51447962]
[1747492082345,1.09553125,103060.0,103050.0,1.61270426]
[1747492082646,1.09553125,103060.0,103050.0,1.19102426]
[1747492083351,1.09553125,103060.0,103050.0,1.61270426]
[1747492084454,1.09553125,103060.0,103050.0,1.69220426]
[1747492084455,0.89553125,103060.0,103050.0,1.69220426]
[1747492084655,0.8371091,103060.0,103050.0,2.06220426]
[1747492084853,0.84255126,103060.0,103050.0,2.06220426]
[1747492085253,0.67735126,103060.0,103050.0,2.06220426]
[1747492085648,0.39985126,103060.0,103050.0,2.11034821]
[1747492087049,0.18906241,103060.0,103050.0,2.11034821]
[1747492088654,0.18906241,103060.0,103050.0,2.01212357]
[1747492088859,0.18906241,103060.0,103050.0,2.11034821]
[1747492089662,0.18906241,103060.0,103050.0,2.15959985]
[1747492095264,0.23182071,103080.0,103070.0,0.1939812]
[1747492095467,0.39552071,103080.0,103070.0,1.43570559]
[1747492095655,0.39552071,103080.0,103070.0,2.03340559]
[1747492096058,0.57552071,103080.0,103070.0,2.03340559]
[1747492096666,0.57552071,103080.0,103070.0,2.08154954]
[1747492096864,0.57652071,103080.0,103070.0,2.08154954]
[1747492097165,0.57752071,103080.0,103070.0,2.08154954]
[1747492097859,0.57752071,103080.0,103070.0,2.09181971]
[1747492098259,0.4259,103080.0,103070.0,2.09181971]
[1747492099669,0.2688,103080.0,103070.0,2.04367576]
[1747492100172,0.27424216,103080.0,103070.0,2.04367576]
[1747492101565,0.44564216,103080.0,103070.0,2.04367576]
[1747492101761,0.44564216,103080.0,103070.0,2.03340559]
[1747492102264,0.44564216,103080.0,103070.0,2.07007965]
[1747492102462,0.44564216,103080.0,103070.0,1.65869998]
[1747492102664,0.44564216,103080.0,103070.0,2.08009998]
[1747492103169,0.35924216,103080.0,103070.0,2.08009998]
[1747492103358,0.35924216,103080.0,103070.0,1.65869998]
[1747492103558,0.27424216,103080.0,103070.0,2.08005998]
[1747492106564,0.27424216,103080.0,103070.0,2.04326592]
[1747492107972,0.27424216,103080.0,103070.0,2.04364567]
[1747492108176,0.27424216,103080.0,103070.0,1.62228567]
[1747492108365,0.27424216,103080.0,103070.0,2.04332567]
[1747492109269,0.43784216,103080.0,103070.0,2.04332567]
[1747492112380,0.43784216,103080.0,103070.0,2.08011973]
[1747492112878,0.43784216,103080.0,103070.0,1.86959973]
[1747492113079,0.43784216,103080.0,103070.0,2.08007973]
[1747492114493,0.43784216,103080.0,103070.0,2.12799553]
[1747492114785,0.18944216,103080.0,103070.0,2.12799553]
[1747492115375,0.26894216,103080.0,103070.0,2.12799553]
[1747492116179,0.26894216,103080.0,103070.0,2.02977089]
[1747492116386,0.43634216,103080.0,103070.0,1.81929089]
[1747492116580,0.43634216,103080.0,103070.0,2.12795553]
[1747492116883,0.43634216,103080.0,103070.0,2.1179352]
[1747492117785,0.43634216,103080.0,103070.0,2.01971056]
[1747492117984,0.43634216,103080.0,103070.0,2.1179352]
[1747492119589,0.43634216,103080.0,103070.0,2.01971056]
[1747492119886,0.43634216,103080.0,103070.0,2.1179352]
[1747492122387,0.18944216,103080.0,103070.0,2.1179352]
[1747492122579,0.18944216,103080.0,103070.0,2.01971056]
[1747492122773,0.18944216,103080.0,103070.0,2.1179352]
[1747492123180,0.27004216,103080.0,103070.0,2.1179352]
[1747492123887,0.18944216,103080.0,103070.0,2.1179352]
[1747492124287,0.18944216,103080.0,103070.0,2.21615984]
[1747492124487,0.18944216,103080.0,103070.0,2.1179352]
[1747492125395,0.247,103090.0,103080.0,0.1939634]
[1747492125579,0.247,103090.0,103080.0,1.17044315]
[1747492125788,0.247,103090.0,103080.0,1.34689243]
[1747492126291,0.247,103090.0,103080.0,1.39480823]
[1747492126292,0.427,103090.0,103080.0,1.39480823]
[1747492126485,0.427,103090.0,103080.0,1.14480823]
[1747492126685,0.427,103090.0,103080.0,1.04658359]
[1747492126995,0.429,103090.0,103080.0,1.04658359]
[1747492127490,0.428,103090.0,103080.0,1.04658359]
[1747492127691,0.428,103090.0,103080.0,0.94835895]
[1747492127894,0.428,103090.0,103080.0,1.04658359]
[1747492128078,0.43,103090.0,103080.0,1.04658359]
[1747492128697,0.2636,103090.0,103080.0,0.94835895]
[1747492128995,0.2616,103090.0,103080.0,1.04658359]
[1747492129195,0.2616,103090.0,103080.0,0.94835895]
[1747492129590,0.26704216,103090.0,103080.0,1.04658359]
[1747492130497,0.34634216,103090.0,103080.0,0.94835895]
[1747492130692,0.34634216,103090.0,103080.0,1.04658359]
[1747492130993,0.43164216,103090.0,103080.0,1.04658359]
[1747492131585,0.43164216,103090.0,103080.0,0.94835895]
[1747492131897,0.43164216,103090.0,103080.0,1.04658359]
[1747492133199,0.43164216,103090.0,103080.0,0.68578359]
[1747492133391,0.43164216,103090.0,103080.0,1.40738359]
[1747492133895,0.43164216,103090.0,103080.0,1.30915895]
[1747492134095,0.43164216,103090.0,103080.0,1.40738359]
[1747492134498,0.62558696,103090.0,103080.0,1.40738359]
[1747492134700,0.43164216,103090.0,103080.0,1.82826359]
[1747492134904,0.43164216,103090.0,103080.0,1.45662488]
[1747492135202,0.43164216,103090.0,103080.0,1.87750488]
[1747492136001,0.62558696,103090.0,103080.0,1.45662488]
[1747492136298,0.62558696,103090.0,103080.0,1.87750488]
[1747492138201,0.43164216,103090.0,103080.0,1.87750488]
[1747492138598,0.43164216,103090.0,103080.0,1.77750488]
[1747492138801,0.43164216,103090.0,103080.0,2.12750488]
[1747492139006,0.43164216,103090.0,103080.0,2.02928024]
[1747492139194,0.43164216,103090.0,103080.0,2.12750488]
[1747492140401,0.43164216,103090.0,103080.0,2.02904024]
[1747492140705,0.43164216,103090.0,103080.0,2.12726488]
[1747492140892,0.43164216,103090.0,103080.0,2.02904024]
[1747492141098,0.43164216,103090.0,103080.0,2.02941999]
[1747492141409,0.43164216,103090.0,103080.0,1.60121999]
[1747492141604,0.43164216,103090.0,103080.0,1.27880463]
[1747492141899,0.43164216,103090.0,103080.0,1.78244463]
[1747492142104,0.43164216,103090.0,103080.0,1.79244463]
[1747492142695,0.43164216,103090.0,103080.0,1.69421999]
[1747492143002,0.43164216,103090.0,103080.0,1.79244463]
[1747492143892,0.43164216,103090.0,103080.0,1.69421999]
[1747492144198,0.43164216,103090.0,103080.0,1.79244463]
[1747492145807,0.26704216,103090.0,103080.0,1.78244463]
[1747492145995,0.26704216,103090.0,103080.0,1.82793269]
[1747492146305,0.26704216,103090.0,103080.0,1.72970805]
[1747492146505,0.26704216,103090.0,103080.0,1.82793269]
[1747492148505,0.26704216,103090.0,103080.0,1.81563877]
[1747492149201,0.26704216,103090.0,103080.0,1.67192607]
[1747492149410,0.26704216,103090.0,103080.0,1.77015071]
[1747492149601,0.26704216,103090.0,103080.0,1.67192607]
[1747492150109,0.26704216,103090.0,103080.0,1.77015071]
[1747492150307,0.43094216,103090.0,103080.0,1.34951071]
[1747492150606,0.62488696,103090.0,103080.0,1.77019071]
[1747492151106,0.43094216,103090.0,103080.0,1.77019071]
[1747492151506,0.43094216,103090.0,103080.0,1.67196607]
[1747492151702,0.43094216,103090.0,103080.0,1.77019071]
[1747492152207,0.43094216,103090.0,103080.0,1.78248463]
[1747492154013,0.43094216,103090.0,103080.0,1.68425999]
[1747492154309,0.43094216,103090.0,103080.0,1.78248463]
[1747492156306,0.62488686,103090.0,103080.0,1.78248463]
[1747492159410,0.62488686,103090.0,103080.0,1.36180463]
[1747492159617,0.46098686,103090.0,103080.0,1.78244463]
[1747492160116,0.46098686,103090.0,103080.0,1.36180463]
[1747492160415,0.46098686,103090.0,103080.0,1.78244463]
[1747492161210,0.46098686,103090.0,103080.0,1.68421999]
[1747492161411,0.53858686,103090.0,103080.0,1.78244463]
[1747492165016,0.26704216,103090.0,103080.0,1.78244463]
[1747492165516,0.46098686,103090.0,103080.0,1.78244463]
[1747492166216,0.46098686,103090.0,103080.0,1.68421999]
[1747492166412,0.46098686,103090.0,103080.0,1.78244463]
[1747492168718,0.46098686,103090.0,103080.0,1.68421999]
[1747492168916,0.46098686,103090.0,103080.0,1.78244463]
[1747492169522,0.46098686,103090.0,103080.0,1.36180463]
[1747492169720,0.62998686,103090.0,103080.0,1.68417999]
[1747492170024,0.62998686,103090.0,103080.0,1.60117999]
[1747492170318,0.7282115,103090.0,103080.0,1.18057999]
[1747492171113,0.62998686,103090.0,103080.0,1.18057999]
[1747492171521,0.62998686,103090.0,103080.0,1.39089999]
[1747492173223,0.62998686,103090.0,103080.0,1.37860873]
[1747492173519,0.62998686,103090.0,103080.0,1.16828873]
[1747492173724,0.62998686,103090.0,103080.0,1.12037293]
[1747492176724,0.62998686,103090.0,103080.0,0.39877293]
[1747492176917,0.62998686,103090.0,103080.0,0.75957293]
[1747492178319,0.84998686,103090.0,103080.0,0.75957293]
[1747492179328,0.84998686,103090.0,103080.0,0.84137293]
[1747492180325,0.84998686,103090.0,103080.0,0.75957293]
[1747492181323,1.04521951,103090.0,103080.0,0.03770953]
[1747492181531,1.04521951,103090.0,103080.0,0.59247303]
[1747492181725,1.19684022,103090.0,103080.0,0.59247303]
[1747492182237,1.19684022,103090.0,103080.0,0.67187303]
[1747492184331,1.19684022,103090.0,103080.0,0.47790953]
[1747492185427,1.09861558,103090.0,103080.0,0.47790953]
[1747492185632,1.19684022,103090.0,103080.0,0.47790953]
[1747492187634,1.09983221,103090.0,103080.0,0.47790953]
[1747492188537,1.09983221,103090.0,103080.0,0.67187303]
[1747492189236,1.09983221,103090.0,103080.0,0.31107303]
[1747492189436,1.09983221,103090.0,103080.0,0.67187303]
[1747492190034,1.09983221,103090.0,103080.0,0.718223]
[1747492195340,1.09983221,103090.0,103080.0,0.357423]
[1747492195542,1.09983221,103090.0,103080.0,0.718223]
[1747492196243,1.00160757,103090.0,103080.0,0.718223]
[1747492196441,1.09983221,103090.0,103080.0,0.718223]
[1747492196642,1.09983221,103090.0,103080.0,0.801223]
[1747492198243,1.09983221,103090.0,103080.0,0.440423]
[1747492198444,1.09983221,103090.0,103080.0,0.801223]
[1747492200245,1.09983221,103090.0,103080.0,0.6072595]
[1747492201540,1.09983221,103090.0,103080.0,0.801223]
[1747492201737,1.09983221,103090.0,103080.0,0.6072595]
[1747492202847,1.00160757,103090.0,103080.0,0.801223]
[1747492203149,1.09983221,103090.0,103080.0,0.6072595]
[1747492205647,1.09983221,103090.0,103080.0,0.2464595]
[1747492205947,1.09983221,103090.0,103080.0,0.6072595]
[1747492206649,1.09983221,103090.0,103080.0,0.2464595]
[1747492206845,1.09983221,103090.0,103080.0,0.6072595]
[1747492207441,1.00160757,103090.0,103080.0,0.6072595]
[1747492207645,1.09983221,103090.0,103080.0,0.6072595]
[1747492208345,1.09983221,103090.0,103080.0,0.5242595]
[1747492208548,1.86614486,103090.0,103080.0,0.0007595]
[1747492208849,0.1939635,103080.0,103070.0,0.20719036]
[1747492209146,1.75307278,103080.0,103070.0,0.20719036]
[1747492210349,1.75307278,103080.0,103070.0,0.20819036]
[1747492211046,1.75307278,103080.0,103070.0,0.20919036]
[1747492211550,1.85108878,103080.0,103070.0,0.12329036]
[1747492211741,1.85508878,103080.0,103070.0,0.12229036]
[1747492211942,1.85508878,103080.0,103070.0,0.08534033]
[1747492212947,1.64472878,103080.0,103070.0,0.08534033]
[1747492213150,2.06868878,103080.0,103070.0,0.08534033]
[1747492213354,1.64772878,103080.0,103070.0,0.16774033]
[1747492215947,1.4512795,103080.0,103070.0,0.16774033]
[1747492216146,2.06912878,103080.0,103070.0,0.16774033]
[1747492216354,1.64772878,103080.0,103070.0,0.16774033]
[1747492216555,2.06924878,103080.0,103070.0,0.16774033]
[1747492216855,2.06920878,103080.0,103070.0,0.16774033]
[1747492217351,2.22044193,103080.0,103070.0,0.16774033]
[1747492217555,1.79896193,103080.0,103070.0,0.16774033]
[1747492217848,2.22036193,103080.0,103070.0,0.16774033]
[1747492218153,1.85956193,103080.0,103070.0,0.16774033]
[1747492218352,2.22036193,103080.0,103070.0,0.16774033]
[1747492219857,1.85956193,103080.0,103070.0,0.16774033]
[1747492220061,2.22036193,103080.0,103070.0,0.16774033]
[1747492220555,1.85956193,103080.0,103070.0,0.16774033]
[1747492220754,2.22580409,103080.0,103070.0,0.16774033]
[1747492223364,2.01472409,103080.0,103070.0,0.16774033]
[1747492223566,2.22592409,103080.0,103070.0,0.16774033]
[1747492223765,1.80440409,103080.0,103070.0,0.16774033]
[1747492223961,0.89863881,103080.0,103070.0,0.72252263]
[1747492224167,0.99686345,103080.0,103070.0,0.61394033]
[1747492224663,1.09508809,103080.0,103070.0,0.61394033]
[1747492224868,1.34378809,103080.0,103070.0,0.61394033]
[1747492225066,1.70458809,103080.0,103070.0,0.16774033]
[1747492225569,1.34378809,103080.0,103070.0,0.16774033]
[1747492225869,1.70458809,103080.0,103070.0,0.16774033]
[1747492228172,1.50813881,103080.0,103070.0,0.16774033]
[1747492228472,1.70458809,103080.0,103070.0,0.16774033]
[1747492229869,1.70458809,103080.0,103070.0,0.08534033]
[1747492230066,1.89982873,103080.0,103070.0,0.08534033]
[1747492230266,1.80160409,103080.0,103070.0,0.08534033]
[1747492233076,1.65037094,103080.0,103070.0,0.08534033]
[1747492233667,1.77970566,103080.0,103070.0,0.08534033]
[1747492233869,1.3549303,103080.0,103070.0,0.61044033]
[1747492234077,0.74740556,103080.0,103070.0,0.61044033]
[1747492234269,0.6516668,103080.0,103070.0,0.80442253]
[1747492234463,1.0570302,103080.0,103070.0,0.61044033]
[1747492234668,0.8456302,103080.0,103070.0,0.61044033]
[1747492235274,0.6516668,103080.0,103070.0,0.61044033]
[1747492235469,0.8456302,103080.0,103070.0,0.61044033]
[1747492235674,1.0570302,103080.0,103070.0,0.61044033]
[1747492235872,1.0550302,103080.0,103070.0,0.61044033]
[1747492236379,1.0530302,103080.0,103070.0,0.61044033]
[1747492236582,1.0550302,103080.0,103070.0,0.61044033]
[1747492237681,1.0530302,103080.0,103070.0,0.61044033]
[1747492237873,0.74340556,103080.0,103070.0,0.80442263]
[1747492238068,0.32944216,103080.0,103070.0,0.90264727]
[1747492238278,0.34340566,103080.0,103070.0,0.90264727]
[1747492238678,0.34340566,103080.0,103070.0,0.80442263]
[1747492239081,0.34240566,103080.0,103070.0,0.80442263]
[1747492239484,0.34040566,103080.0,103070.0,0.80442263]
[1747492239678,0.34140566,103080.0,103070.0,0.80442263]
[1747492245991,0.34140566,103080.0,103070.0,0.44362263]
[1747492246398,0.34140566,103080.0,103070.0,1.16522263]
[1747492248082,0.52140566,103080.0,103070.0,1.16522263]
[1747492250494,0.32744216,103080.0,103070.0,1.3146266]
[1747492250699,0.18744216,103080.0,103070.0,2.0569466]
[1747492251297,0.00744216,103080.0,103070.0,2.0569466]
[1747492251800,0.00644216,103080.0,103070.0,2.1549626]
[1747492251995,0.00544216,103080.0,103070.0,2.1559626]
[1747492252487,0.19940566,103080.0,103070.0,2.1559626]
[1747492252689,0.19940566,103080.0,103070.0,2.16605606]
[1747492253491,0.19940566,103080.0,103070.0,2.06904006]
[1747492256398,0.00544216,103080.0,103070.0,2.06904006]
[1747492256592,0.19940566,103080.0,103070.0,2.06904006]
[1747492257197,0.00544216,103080.0,103070.0,2.06904006]
[1747492259003,0.00544216,103080.0,103070.0,2.10599009]
[1747492259511,0.19940556,103080.0,103070.0,2.10599009]
[1747492260000,0.19940556,103080.0,103070.0,2.09589663]
[1747492260998,0.00544216,103080.0,103070.0,2.09589663]
[1747492262608,0.00544216,103080.0,103070.0,1.77589663]
[1747492263396,0.76829145,103100.0,103070.0,1.67706448]
[1747492263600,0.81177665,103100.0,103090.0,1.01357606]
[1747492263806,0.81177665,103100.0,103090.0,0.9155447]
[1747492264001,0.89137665,103100.0,103090.0,1.1687447]
[1747492264201,1.07137665,103100.0,103090.0,1.1687447]
[1747492264412,1.07337665,103100.0,103090.0,1.1687447]
[1747492264596,1.07537665,103100.0,103090.0,1.1687447]
[1747492265107,1.07337665,103100.0,103090.0,1.1687447]
[1747492265296,1.07537665,103100.0,103090.0,1.1687447]
[1747492265905,1.07337665,103100.0,103090.0,1.1687447]
[1747492266106,1.07537665,103100.0,103090.0,1.1687447]
[1747492266708,1.02689145,103100.0,103090.0,1.1687447]